{"text_format":"1","workbook":"xlsx","n_sheets":9,"sheets":["Instructivo","DEMANDA ANUAL","VOLUMEN DE QUEJAS","COSTO ADMINISTRACIÓN PÚBLICA","RESUMEN DE COSTOS AP","AUXILIAR COSTO ADMINISTRACIÓN","TIEMPO DE RESPUESTA","CANAL ATENCIÓN","RESUMEN"],"not_rendered":{"charts":0,"images":7,"macros":1,"external_links":0,"defined_names":0,"comments":5,"pivot_tables":0},"unopened":[],"bounds":{"document_bytes":16777216,"sheet_cells":100000,"rows_first":2000,"rows_last":500,"rows_between":2000,"halvings":0,"cell_chars":16384,"cell_head_chars":4096},"cells_cut":0,"cells_raw":0,"read":"whole","date_system":"1900"}

{"sheet":"Instructivo","index":0,"n_rows":70,"n_cols":1,"rows_kept":70,"cut":false,"hidden":false,"merged":[]}
["CRITERIO DE PRIORIZACIÓN DE TRÁMITES ADMINISTRATIVOS"]
["Instructivo"]
["Consideraciones generales"]
[]
["En las hojas “COSTO DE ADMINISTRACIÓN PÚBLICA”y “RESUMEN”  para añadir más trámites y que apliquen las fórmulas, se deberá seleccionar la primera fila y copiarla una por cada trámite de la entidad"]
[]
["Todas las hojas tienen columnas de color celeste, en las cuales NO deben ingresar valores ya que contienen fórmulas."]
["Para la carga en GOB.EC. La institución debe recordar que el peso máximo del archivo es de 2 MB."]
["Esquema de puntuación"]
["Para priorizar un trámite, se realizará un análisis de criterios básicos y adicionales basado en información que disponen las instituciones sujetas a esta norma técnica. Cada criterio será puntuado según los lineamientos presentes en esta norma."]
["a) Demanda Anual"]
["Considerará el volumen o frecuencia de las solicitudes que ingresan al año a cada institución para la gestión de un trámite en particular."]
["La identificación del volumen anual de los trámites se realizará a través de sus registros de transacciones y/o el número de visitas de consulta de información realizadas a través de páginas web institucionales."]
["Para realizar el registro realice lo siguiente:"]
["1.- Seleccione la hoja DEMANDA ANUAL"]
["2.- Ingrese los trámites de la institución registrando el identificador y nombre en las columnas respectivas.  "]
["3.- Para cada trámite debe especificar en la columna DEMANDA ANUAL el volumen o frecuencia anual, de acuerdo a lo mencionado anteriormente."]
["4.- Una vez terminado el llenado solicitado presione el botón PUNTUACIÓN, se ordenara de menor a mayor. "]
["5.- Usted visualizará el ordenamiento de los trámites ingresados de acuerdo al número de  volumen o frecuencia anual."]
["6.- Así mismo, usted visualizará el puntaje obtenido en la columna PUNTUACIÓN de acuerdo al grupo obtenido por cada trámite de acuerdo al número de volumen o frecuencia anual cosiderando lo siguiente: ** Primer grupo (trámites con menor demanda no incluye los trámites con demanda 0 ) = 3\n** Segundo grupo (trámites con demanda intermedia) = 6\n** Tercer grupo (trámites con mayor demanda) = 10"]
["Cada vez que requiera actualizar el puntaje presionando el botón puntuación, debe verificar que la celda de la columna puntaje se encuentren vacías, es decir, se debe borrar cualquier valor de puntaje obtenido previamente."]
["b) Volumen de quejas asociadas a un trámite: "]
["Considerará la cantidad de quejas recibidas en relación a un trámite durante un año. Estas quejas deberán estar documentadas en medios físicos y/o digitales."]
["Para determinar la puntuación, se colocará en una tabla todos los trámites con sus correspondientes quejas ordenándose de menor a mayor. Se dividirá en 2 partes en los que cada grupo contenga la misma cantidad de trámites."]
["Para realizar el registro realice lo siguiente:"]
["1.- Seleccione la hoja VOLUMEN DE QUEJAS"]
["2.- Ingrese los trámites de la institución registrando el identificador y nombre en las columnas respectivas.  Si usted requiere de acuerdo al número de trámites copie filas adicionales que estén dentro del cuadro"]
["3.- Para cada trámite debe especificar en la columna VOLUMEN QUEJAS el número de quejas anual, de acuerdo a lo mencionado anteriormente."]
["4.- Una vez terminado el llenado solicitado presione el botón PUNTUACIÓN."]
["5.- Usted visualizará el ordenamiento de los trámites ingresados de acuerdo al número de  volumen o frecuencia anual."]
["6.- Así mismo, usted visualizará el puntaje obtenido en la columna PUNTUACIÓN de acuerdo al grupo obtenido por cada trámite de acuerdo al número de volumen o frecuencia anual cosiderando lo siguiente: La puntuación se basará en los siguientes grupos:\n** Primer grupo (trámites con menor cantidad de quejas, no incluye los trámites con queja 0 ) = 4\n** Segundo grupo (trámites con mayor porcentaje de quejas) = 10"]
["El valor del volumen de quejas no debe ser superior al valor del volumen de la demana, no le permitirá registrar un valor."]
["c) Costo para la administración pública: "]
["En cada trámite, basado en un caso estándar, se deberá estimar el costo incurrido en el costo de personal y recursos necesarios para su atención desde que el administrado entregó todos los requisitos hasta que la institución entregue el producto, respuesta o servicio requerido en el trámite. Se considerará:"]
["• Costo de personal:"]
["Costo del personal para atender el trámite, se excluyen actividades realizadas automáticamente o que dependen del administrado. El tiempo deberá considerar únicamente el tiempo efectivo de trabajo del personal, no debe considerar el tiempo de espera o de movimiento."]
["• Costo de recursos:"]
["Se deberá considerar el costo directo en el que la institución debe incurrir para atender un trámite. Se debe considerar los insumos o materia prima necesaria u cualquier otro que la institución considere pertinente."]
["Para realizar el registro realice lo siguiente:"]
["1.- Seleccione la hoja COSTO ADMINISTRACIÓN PÚBLICA"]
["2.- Ingrese los trámites de la institución registrando el identificador y nombre en las columnas respectivas.  Si usted requiere de acuerdo al número de trámites copie filas adicionales que estén dentro del cuadro"]
["3.- Para calcular el tiempo de las actividades, utilizar la hoja AUXILIAR COSTO ADMINISTRACIÓN donde deberá listar todas las actividades que realiza la institución en un caso estándar y asignar el tiempo mínimo que toma cada actvidad (en horas). El tiempo total de las actividades, deberá ingresar en la correspondiente celda de la hoja COSTO ADMINISTRACIÓN PÚBLICA"]
["4.- En función de la información registrada en el paso 3, la matriz entregará el costo del personal"]
["5.- Completar la columna \"Costo recursos\", en la cual ingresará el costo directo en el que incurre la institución para entregar el trámite. En este valor se considerarán los valores correspondientes a insumos y/o materia prima mínimos que se invierten por cada trámite (no se considera mano de obra)"]
["6.- La columna \"Costo para la adm. pública\" mostrará el costto de este criterio para cada trámite"]
["7,- Para que la fórmula funcione debe arrastrar hacia abajo al último de los támites ingresados, no copiar"]
["7.- Una vez que disponga del Costo para la administración pública, presionar el botón \"GENERAR\"."]
["8. Visualizar la hoja “RESUMEN DE COSTO AP” en la que va a encontrar copiada las celdas necesarias para el ordenamiento y puntuación de las mismas al presionar el botón “PUNTUACIÓN”"]
[]
["d) Tiempo de respuesta: "]
["Considerará los tiempos que a las instituciones les toma dar respuesta a un trámite desde que reciben la solicitud del administrado hasta la finalización del mismo. Para la definición del tiempo se considerará un caso estándar."]
["Para determinar la puntuación, se colocará en una tabla todos los trámites con el tiempo de respuesta, ordenándose de menor a mayor. Se dividirá en 4 grupos, en los que cada uno contenga la misma cantidad de trámites."]
["Para realizar el registro realice lo siguiente:"]
["1.- Seleccione la hoja TIEMPO DE RESPUESTA"]
["2.- Ingrese los trámites de la institución registrando el identificador y nombre en las columnas respectivas.  Si usted requiere de acuerdo al número de trámites copie filas adicionales que estén dentro del cuadro"]
["3.- Para cada trámite debe especificar en la columna TIEMPO RESPUESTA el tiempo, de acuerdo a lo mencionado anteriormente."]
["4.- Una vez terminado el llenado solicitado presione el botón PUNTUACIÓN."]
["5.- Usted visualizará el ordenamiento de los trámites ingresados de acuerdo al número de  volumen o frecuencia anual."]
["6.- Así mismo, usted visualizará el puntaje obtenido en la columna PUNTUACIÓN de acuerdo al grupo obtenido por cada trámite de acuerdo al número de volumen o frecuencia anual cosiderando lo siguiente:  La puntuación considera lo siguiente:\n** Primer grupo (menor o igual a 40 horas laboralres) = 0\n** Segundo grupo mayor  40 horas laboralres) = 30"]
["e) Canal de atención: "]
["Considerará los canales de atención a través de los cuales el administrado puede iniciar el trámite."]
["Para realizar el registro realice lo siguiente:"]
["1.- Seleccione la hoja CANAL ATENCIÓN"]
["2.- Ingrese los trámites de la institución registrando el identificador y nombre en las columnas respectivas.  Si usted requiere de acuerdo al número de trámites copie filas adicionales que estén dentro del cuadro"]
["3.- Para cada trámite debe seleccionar el canal de atención del trámite en la columna CANAL ATENCIÓN, que pueden ser: \nEl trámite se puede completar totalmente en línea: Se considera trámite totalmente en línea cuando el administrado no requiere realizar ninguna interacción presencial con la institución = 0\nEl trámite no se puede completar totalmente en línea: Se considera este caso, cuando el trámite incluye al menos una actividad, incluido mecanismos de pago, en la que el administrado deba acudir presencialmente a la institución, para la realización de dicho trámite. Los trámites presenciales se consideran dentro de esta categoría = 10"]
["4.- De acuerdo a la selección usted obtendrá la puntuación del trámite que se visualizará en la columna PUNTUACIÓN."]
[]
["f) Resumen"]
["En esta hoja deberá consolidar todas las puntuaciones obtenidas para cada trámite en los criterios a) hasta e). Adicionalmente deberá analizar los criterios adicionales que dispone la norma técnica, para estos últimos solamente deberá seleccionar en la celda correspondiente y la matriz asignará la puntuación adicional. Los criterios que deberá considerar son:\n- NECESIDADES CIUDADANAS: Si la institución ha implementado mecanismos para identificar necesidades ciudadanas respecto al trámite, seleccionar \"SI\", caso contrario, seleccionar \"NO\"\n- SUSCEPTIBILIDAD A CORRUPCIÓN: Si la institución dispone de información documentada sobre presuntos actos de corrupción, seleccionar \"SI\", caso contrario, seleccionar \"NO\"\n- VOLUMEN DE DEVOLUCIONES: Si la institución posee documentación sobre devoluciones del trámite en una cantidad significativa, seleccionar \"SI\", caso contrario, seleccionar \"NO\"\nPara que funcione la lista depelgable debe arrastrar la lista y la puntuación hacia abajo al último de los támites ingresados, no copiar"]
["En la columna puntaje total se realizará la sumatoria de los valores de los criterios básicos y adicionales. Este valor deberá registrarse en la plataforma GOB.EC"]

{"sheet":"DEMANDA ANUAL","index":1,"n_rows":15,"n_cols":4,"rows_kept":15,"cut":false,"hidden":false,"merged":[[0,0,0,3],[1,0,1,3]]}
["PRIORIZACIÓN DE TRÁMITES ADMINISTRATIVOS"]
["DEMANDA ANUAL"]
[]
["IDENTIFICADOR","TRÁMITE","DEMANDA ANUAL","PUNTAJE"]
["INEN-012-01-01","Actas de Sellamiento de Bebidas Alcohólicas",3,3]
["INEN-012-02-01","Autorización de Envasamiento de Bebidas Alcohólicas",9,3]
["INEN-013-01-01","Certificado de la gestión de micro, pequeñas, medianas empresas y organizaciones de economía popular y solidaria",266,3]
["INEN-011-01-01","Oficio de reconocimiento de informes de emisiones de gases contaminantes de automotores",344,6]
["INEN-008-01-01","Certificado de conformidad con Sello de Calidad INEN",378,6]
["INEN-004-01-01","Certificado de Calibración In situ",572,6]
["INEN-010-01-01","Informe de Ensayo físicos, mecánico y analíticos",584,10]
["INEN-001-02-01","Norma Técnica Internacional o Regional (venta de normas)",1125,10]
["INEN-009-01-01","Certificado de Inspección de etiquetado",1570,10]
["INEN-005-01-01","Certificado de Calibración en Laboratorio",2509,10]
["INEN-003-01-01","Certificado de Reconocimiento INEN a través de la VUE",29071,10]

{"sheet":"VOLUMEN DE QUEJAS","index":2,"n_rows":15,"n_cols":6,"rows_kept":15,"cut":false,"hidden":false,"merged":[[0,0,0,5],[1,0,1,5]]}
["PRIORIZACIÓN DE TRÁMITES ADMINISTRATIVOS"]
["VOLUMEN DE QUEJAS"]
[]
["IDENTIFICADOR","TRÁMITE","VOLUMEN DEMANDA","VOLUMEN DE QUEJAS","PORCENTAJE","PUNTUACIÓN"]
["INEN-012-01-01","Actas de Sellamiento de Bebidas Alcohólicas",3,0,0,0]
["INEN-012-02-01","Autorización de Envasamiento de Bebidas Alcohólicas",9,1,11.111111111111111,10]
["INEN-013-01-01","Certificado de la gestión de micro, pequeñas, medianas empresas y organizaciones de economía popular y solidaria",266,0,0,0]
["INEN-011-01-01","Oficio de reconocimiento de informes de emisiones de gases contaminantes de automotores",344,0,0,0]
["INEN-008-01-01","Certificado de conformidad con Sello de Calidad INEN",378,1,0.26455026455026454,4]
["INEN-004-01-01","Certificado de Calibración In situ",572,0,0,0]
["INEN-010-01-01","Informe de Ensayo físicos, mecánico y analíticos",584,0,0,0]
["INEN-001-02-01","Norma Técnica Internacional o Regional (venta de normas)",1125,0,0,0]
["INEN-009-01-01","Certificado de Inspección de etiquetado",1570,0,0,0]
["INEN-005-01-01","Certificado de Calibración en Laboratorio",2509,0,0,0]
["INEN-003-01-01","Certificado de Reconocimiento INEN a través de la VUE",29071,1,3.4398541501840323E-3,4]

{"sheet":"COSTO ADMINISTRACIÓN PÚBLICA","index":3,"n_rows":16,"n_cols":9,"rows_kept":16,"cut":false,"hidden":false,"merged":[[0,0,0,5],[1,0,1,5],[3,0,4,0],[3,1,4,1],[3,2,3,4],[3,5,4,5]]}
["PRIORIZACIÓN DE TRÁMITES ADMINISTRATIVOS"]
["COSTOS PARA LA ADMINISTRACIÓN PÚBLICA"]
[]
["IDENTIFICADOR","TRÁMITE","INSUMOS PARA COSTO",null,null,"COSTO PARA LA ADM. PÚBLICA",null,"SBU",400]
[null,null,"TIEMPO (HORAS)","COSTO PERSONAL","COSTO RECURSOS"]
["INEN-012-01-01","Actas de Sellamiento de Bebidas Alcohólicas",1.0166666666666666,{"$f":"C6*$I$4/160","v":2.5416666666666665},1,{"$f":"D6+E6","v":3.5416666666666665}]
["INEN-012-02-01","Autorización de Envasamiento de Bebidas Alcohólicas",1,{"$f":"C7*$I$4/160","v":2.5},0.5,{"$f":"D7+E7","v":3}]
["INEN-013-01-01","Certificado de la gestión de micro, pequeñas, medianas empresas y organizaciones de economía popular y solidaria",56,140,60.31,200.31]
["INEN-011-01-01","Oficio de reconocimiento de informes de emisiones de gases contaminantes de automotores",56,140,60.31,200.31]
["INEN-008-01-01","Certificado de conformidad con Sello de Calidad INEN",48,120,8,128]
["INEN-004-01-01","Certificado de Calibración In situ",24.5,{"$f":"C11*$I$4/160","v":61.25},5,{"$f":"D11+E11","v":66.25}]
["INEN-010-01-01","Informe de Ensayo físicos, mecánico y analíticos",80.5,201.25,8,209.25]
["INEN-001-02-01","Norma Técnica Internacional o Regional (venta de normas)",24.5,61.25,3,64.25]
["INEN-009-01-01","Certificado de Inspección de etiquetado",30.75,76.875,4,80.875]
["INEN-005-01-01","Certificado de Calibración en Laboratorio",30.75,76.875,4,80.875]
["INEN-003-01-01","Certificado de Reconocimiento INEN a través de la VUE",36,90,5,95]

{"sheet":"RESUMEN DE COSTOS AP","index":4,"n_rows":15,"n_cols":4,"rows_kept":15,"cut":false,"hidden":false,"merged":[[0,0,0,5],[1,0,1,5]]}
["PRIORIZACIÓN DE TRÁMITES ADMINISTRATIVOS"]
["COSTOS PARA LA ADMINISTRACIÓN PÚBLICA"]
[]
["IDENTIFICADOR","TRÁMITE","COSTO PARA LA ADM. PÚBLICA","PUNTUACIÓN"]
["INEN-012-02-01","Autorización de Envasamiento de Bebidas Alcohólicas",3,5]
["INEN-012-01-01","Actas de Sellamiento de Bebidas Alcohólicas",3.5416666666666665,5]
["INEN-001-02-01","Norma Técnica Internacional o Regional (venta de normas)",64.25,5]
["INEN-004-01-01","Certificado de Calibración In situ",66.25,10]
["INEN-005-01-01","Certificado de Calibración en Laboratorio",80.875,10]
["INEN-009-01-01","Certificado de Inspección de etiquetado",80.875,10]
["INEN-003-01-01","Certificado de Reconocimiento INEN a través de la VUE",95,20]
["INEN-008-01-01","Certificado de conformidad con Sello de Calidad INEN",128,20]
["INEN-013-01-01","Certificado de la gestión de micro, pequeñas, medianas empresas y organizaciones de economía popular y solidaria",200.31,20]
["INEN-011-01-01","Oficio de reconocimiento de informes de emisiones de gases contaminantes de automotores",200.31,20]
["INEN-010-01-01","Informe de Ensayo físicos, mecánico y analíticos",209.25,20]

{"sheet":"AUXILIAR COSTO ADMINISTRACIÓN","index":5,"n_rows":127,"n_cols":3,"rows_kept":127,"cut":false,"hidden":false,"merged":[[1,1,1,2],[16,1,16,2],[25,1,25,2],[36,1,36,2],[47,1,47,2],[118,1,118,2],[58,1,58,2],[70,1,70,2],[82,1,82,2],[94,1,94,2],[106,1,106,2]]}
[]
["TRÁMITE:",{"$f":"'COSTO ADMINISTRACIÓN PÚBLICA'!B6","v":"Actas de Sellamiento de Bebidas Alcohólicas"}]
["NO.","ACTIVIDAD","TIEMPO (HORAS)"]
[1,"Revisión de solicitud de cotización",{"$f":"5/60","v":8.3333333333333329E-2}]
[2,"Revisión de disponibilidad de normativa",{"$f":"10/60","v":0.16666666666666666}]
[3,"Elaboración de cotización",{"$f":"10/60","v":0.16666666666666666}]
[4,"Envío de cotización",{"$f":"3/60","v":0.05}]
[5,"Registro de la factura en el sistema de facturación",{"$f":"10/60","v":0.16666666666666666}]
[6,"Registro de marca de agua en la norma",{"$f":"20/60","v":0.33333333333333331}]
[7,"Envío de la norma",{"$f":"3/60","v":0.05}]
[null,"SUMATORIA ACTIVIDADES",{"$f":"SUM(C4:C10)","v":1.0166666666666666}]
[]
[null,null,"Valor en $"]
[null,"Costo directo estimado (impresión / CD)",1]
[]
[]
["TRÁMITE:",{"$f":"'COSTO ADMINISTRACIÓN PÚBLICA'!B7","v":"Autorización de Envasamiento de Bebidas Alcohólicas"}]
["NO.","ACTIVIDAD","TIEMPO (HORAS)"]
[1,"Revisión documental",1]
[null,"SUMATORIA ACTIVIDADES",{"$f":"SUM(C19:C19)","v":1}]
[]
[null,null,"Valor en $"]
[null,"Costo directo estimado",0.5]
[]
[]
["TRÁMITE:",{"$f":"'COSTO ADMINISTRACIÓN PÚBLICA'!B8","v":"Certificado de la gestión de micro, pequeñas, medianas empresas y organizaciones de economía popular y solidaria"}]
["NO.","ACTIVIDAD","TIEMPO (HORAS)"]
[1,"Fase inicial",8]
[2,"Validación del pago del servicio de calibración",8]
[3,"Tiempo de calibración y emisión del certificado",40]
[null,"SUMATORIA ACTIVIDADES",{"$f":"SUM(C28:C30)","v":56}]
[]
[null,null,"Valor en $"]
[null,"Costo directo estimado",60.31]
[]
[]
["TRÁMITE:",{"$f":"'COSTO ADMINISTRACIÓN PÚBLICA'!B9","v":"Oficio de reconocimiento de informes de emisiones de gases contaminantes de automotores"}]
["NO.","ACTIVIDAD","TIEMPO (HORAS)"]
[1,"Fase inicial",8]
[2,"Validación del pago del servicio de calibración",8]
[3,"Tiempo de calibración y emisión del certificado",40]
[null,"SUMATORIA ACTIVIDADES",{"$f":"SUM(C39:C41)","v":56}]
[]
[null,null,"Valor en $"]
[null,"Costo directo estimado",60.31]
[]
[]
["TRÁMITE:",{"$f":"'COSTO ADMINISTRACIÓN PÚBLICA'!B10","v":"Certificado de conformidad con Sello de Calidad INEN"}]
["NO.","ACTIVIDAD","TIEMPO (HORAS)"]
[1,"Fase inicial ",8]
[2,"Evaluación del propducto (auditoría)",24]
[3,"Evaluación del sistema de gestión",16]
[null,"SUMATORIA ACTIVIDADES",{"$f":"SUM(C50:C52)","v":48}]
[]
[null,null,"Valor en $"]
[null,"Costo directo estimado",8]
[]
[]
["TRÁMITE:",{"$f":"'COSTO ADMINISTRACIÓN PÚBLICA'!B11","v":"Certificado de Calibración In situ"}]
["NO.","ACTIVIDAD","TIEMPO (HORAS)"]
[1,"Revisión de solicitud",{"$f":"5/60","v":8.3333333333333329E-2}]
[2,"Emisión de proforma",{"$f":"10/60","v":0.16666666666666666}]
[3,"Revisión de etiqueta",24]
[4,"Emisión del certificado",{"$f":"15/60","v":0.25}]
[null,"SUMATORIA ACTIVIDADES",{"$f":"SUM(C61:C64)","v":24.5}]
[]
[null,null,"Valor en $"]
[null,"Costo directo estimado",5]
[]
[]
["TRÁMITE:",{"$f":"'COSTO ADMINISTRACIÓN PÚBLICA'!B12","v":"Informe de Ensayo físicos, mecánico y analíticos"}]
["NO.","ACTIVIDAD","TIEMPO (HORAS)"]
[1,"Revisión de solicitud",{"$f":"5/60","v":8.3333333333333329E-2}]
[2,"Emisión de proforma",{"$f":"10/60","v":0.16666666666666666}]
[3,"Realización del ensayo",80]
[4,"Emisión del informe",0.25]
[null,"SUMATORIA ACTIVIDADES",{"$f":"SUM(C73:C76)","v":80.5}]
[]
[null,null,"Valor en $"]
[null,"Costo directo estimado",8]
[]
[]
["TRÁMITE:",{"$f":"'COSTO ADMINISTRACIÓN PÚBLICA'!B13","v":"Norma Técnica Internacional o Regional (venta de normas)"}]
["NO.","ACTIVIDAD","TIEMPO (HORAS)"]
[1,"Revisión de solicitud",{"$f":"5/60","v":8.3333333333333329E-2}]
[2,"Emisión de proforma",{"$f":"10/60","v":0.16666666666666666}]
[3,"Revisión de informes",24]
[4,"Emisión del oficio",0.25]
[null,"SUMATORIA ACTIVIDADES",{"$f":"SUM(C85:C88)","v":24.5}]
[]
[null,null,"Valor en $"]
[null,"Costo directo estimado",3]
[]
[]
["TRÁMITE:",{"$f":"'COSTO ADMINISTRACIÓN PÚBLICA'!B14","v":"Certificado de Inspección de etiquetado"}]
["NO.","ACTIVIDAD","TIEMPO (HORAS)"]
[1,"Revisión de solicitud",{"$f":"5/60","v":8.3333333333333329E-2}]
[2,"Emisión de proforma",{"$f":"10/60","v":0.16666666666666666}]
[3,"Revisión de las características de sellamiento",30]
[4,"Emisión del acta",0.5]
[null,"SUMATORIA ACTIVIDADES",{"$f":"SUM(C97:C100)","v":30.75}]
[]
[null,null,"Valor en $"]
[null,"Costo directo estimado",4]
[]
[]
["TRÁMITE:",{"$f":"'COSTO ADMINISTRACIÓN PÚBLICA'!B15","v":"Certificado de Calibración en Laboratorio"}]
["NO.","ACTIVIDAD","TIEMPO (HORAS)"]
[1,"Revisión de solicitud",{"$f":"5/60","v":8.3333333333333329E-2}]
[2,"Emisión de proforma",{"$f":"10/60","v":0.16666666666666666}]
[3,"Revisión de las características de envasamiento",30]
[4,"Emisión de la autorización",0.5]
[null,"SUMATORIA ACTIVIDADES",{"$f":"SUM(C109:C112)","v":30.75}]
[]
[null,null,"Valor en $"]
[null,"Costo directo estimado",4]
[]
[]
["TRÁMITE:",{"$f":"'COSTO ADMINISTRACIÓN PÚBLICA'!B16","v":"Certificado de Reconocimiento INEN a través de la VUE"}]
["NO.","ACTIVIDAD","TIEMPO (HORAS)"]
[1,"Fase inicial ",8]
[2,"Evaluación del propducto (auditoría)",14]
[3,"Evaluación del sistema de gestión",14]
[null,"SUMATORIA ACTIVIDADES",{"$f":"SUM(C121:C123)","v":36}]
[]
[null,null,"Valor en $"]
[null,"Costo directo estimado",5]

{"sheet":"TIEMPO DE RESPUESTA","index":6,"n_rows":15,"n_cols":4,"rows_kept":15,"cut":false,"hidden":false,"merged":[[0,0,0,3],[1,0,1,3]]}
["PRIORIZACIÓN DE TRÁMITES ADMINISTRATIVOS"]
["TIEMPO DE RESPUESTA"]
[]
["IDENTIFICADOR","TRÁMITE","TIEMPO RESPUESTA (horas laborables)","PUNTUACIÓN"]
["INEN-012-01-01","Actas de Sellamiento de Bebidas Alcohólicas",50,30]
["INEN-012-02-01","Autorización de Envasamiento de Bebidas Alcohólicas",50,30]
["INEN-013-01-01","Certificado de la gestión de micro, pequeñas, medianas empresas y organizaciones de economía popular y solidaria",32,0]
["INEN-011-01-01","Oficio de reconocimiento de informes de emisiones de gases contaminantes de automotores",40,0]
["INEN-008-01-01","Certificado de conformidad con Sello de Calidad INEN",144,30]
["INEN-004-01-01","Certificado de Calibración In situ",144,30]
["INEN-010-01-01","Informe de Ensayo físicos, mecánico y analíticos",40,0]
["INEN-001-02-01","Norma Técnica Internacional o Regional (venta de normas)",16,0]
["INEN-009-01-01","Certificado de Inspección de etiquetado",40,0]
["INEN-005-01-01","Certificado de Calibración en Laboratorio",176,30]
["INEN-003-01-01","Certificado de Reconocimiento INEN a través de la VUE",18,0]

{"sheet":"CANAL ATENCIÓN","index":7,"n_rows":15,"n_cols":12,"rows_kept":15,"cut":false,"hidden":false,"merged":[[0,0,0,3],[1,0,1,3]]}
["PRIORIZACIÓN DE TRÁMITES ADMINISTRATIVOS"]
["CANAL DE ATENCIÓN"]
[null,null,null,null,null,null,null,null,"Totalmente en Línea",null,null,0]
["IDENTIFICADOR","TRÁMITE","CANAL ATENCIÓN","PUNTUACIÓN",null,null,null,null,"No se completa totalmente en línea.",null,null,10]
["INEN-012-01-01","Actas de Sellamiento de Bebidas Alcohólicas","No se completa totalmente en línea.",{"$f":"IF(ISBLANK(C5),\"\",IF(C5=\"Totalmente en línea\",0,IF(C5=\"Inicia en línea\",6,10)))","v":10}]
["INEN-012-02-01","Autorización de Envasamiento de Bebidas Alcohólicas","No se completa totalmente en línea.",{"$f":"IF(ISBLANK(C6),\"\",IF(C6=\"Totalmente en línea\",0,IF(C6=\"Inicia en línea\",6,10)))","v":10}]
["INEN-013-01-01","Certificado de la gestión de micro, pequeñas, medianas empresas y organizaciones de economía popular y solidaria","Totalmente en Línea",0]
["INEN-011-01-01","Oficio de reconocimiento de informes de emisiones de gases contaminantes de automotores","No se completa totalmente en línea.",10]
["INEN-008-01-01","Certificado de conformidad con Sello de Calidad INEN","Totalmente en Línea",0]
["INEN-004-01-01","Certificado de Calibración In situ","Totalmente en Línea",0]
["INEN-010-01-01","Informe de Ensayo físicos, mecánico y analíticos","Totalmente en Línea",0]
["INEN-001-02-01","Norma Técnica Internacional o Regional (venta de normas)","Totalmente en Línea",0]
["INEN-009-01-01","Certificado de Inspección de etiquetado","Totalmente en Línea",0]
["INEN-005-01-01","Certificado de Calibración en Laboratorio","No se completa totalmente en línea.",10]
["INEN-003-01-01","Certificado de Reconocimiento INEN a través de la VUE","Totalmente en Línea",0]

{"sheet":"RESUMEN","index":8,"n_rows":14,"n_cols":25,"rows_kept":14,"cut":false,"hidden":false,"merged":[[1,9,1,10],[1,11,1,12],[1,13,2,13],[0,2,0,6],[0,7,0,12],[1,5,2,5],[1,6,2,6],[1,7,1,8],[1,0,2,0],[1,1,2,1],[1,2,2,2],[1,3,2,3],[1,4,2,4]]}
[null,null,"BÁSICOS",null,null,null,null,"ADICIONALES"]
["ID trámite","Nombre del trámite","Demanda","Quejas","Costo para administración","Tiempo de respuesta","Canal de atención","Necesidades ciudadanas",null,"Susceptibilidad a corrupción",null,"Volumen de devoluciones",null,"PUNTAJE TOTAL"]
[null,null,null,null,null,null,null,"Criterio","Puntuación","Criterio","Puntuación","Criterio","Puntuación",null,null,null,null,null,null,null,"demanda",0,3,6,10]
["INEN-001-02-01","Norma Técnica Internacional o Regional (venta de normas)",10,0,5,0,0,"NO",{"$f":"IF(H4=\"SI\",5,0)","v":0},"NO",{"$f":"IF(J4=\"SI\",10,0)","v":0},"NO",{"$f":"IF(L4=\"SI\",5,0)","v":0},{"$f":"SUM(C4:G4,I4,K4,M4)","v":15},null,null,null,null,null,null,"quejas",0,4,10]
["INEN-003-01-01","Certificado de Reconocimiento INEN a través de la VUE",10,4,20,0,0,"NO",0,"NO",0,"NO",0,34,null,null,null,null,null,null,"cpa",5,10,20]
["INEN-004-01-01","Certificado de Calibración In situ",6,0,10,30,0,"NO",0,"NO",0,"NO",0,46,null,null,null,null,null,null,"tr",0,30]
["INEN-005-01-01","Certificado de Calibración en Laboratorio",10,0,10,30,10,"NO",0,"NO",0,"NO",0,60,null,null,null,null,null,null,"ca",0,10]
["INEN-008-01-01","Certificado de conformidad con Sello de Calidad INEN",6,4,20,30,0,"NO",0,"NO",0,"NO",0,60,null,null,null,null,null,null,null,"SI","NO"]
["INEN-009-01-01","Certificado de Inspección de etiquetado",10,0,10,0,0,"NO",0,"NO",0,"NO",0,20]
["INEN-010-01-01","Informe de Ensayo físicos, mecánico y analíticos",10,0,20,0,0,"NO",0,"NO",0,"NO",0,30]
["INEN-011-01-01","Oficio de reconocimiento de informes de emisiones de gases contaminantes de automotores",6,0,20,0,10,"NO",0,"NO",0,"NO",0,36]
["INEN-012-01-01","Actas de Sellamiento de Bebidas Alcohólicas",3,0,5,30,10,"NO",0,"NO",0,"NO",0,48]
["INEN-012-02-01","Autorización de Envasamiento de Bebidas Alcohólicas",3,10,5,30,10,"NO",0,"NO",0,"NO",0,58]
["INEN-013-01-01","Certificado de la gestión de micro, pequeñas, medianas empresas y organizaciones de economía popular y solidaria",3,0,20,0,0,"NO",0,"NO",0,"NO",0,23]